bitfinex-derivatives/quotes_BTCF0:USTF0_20250828
["timestamp","ask_amount","ask_price","bid_price","bid_amount"]
[1756392251996,0.55478779,113120.0,113110.0,0.44835998]
[1756392252204,0.55478779,113120.0,113110.0,0.43732579]
[1756392254808,0.53256283,113120.0,113110.0,0.43732579]
[1756392255008,0.55480717,113120.0,113110.0,0.43732579]
[1756392255306,0.08121397,113120.0,113110.0,0.44824877]
[1756392255606,0.55480717,113120.0,113110.0,0.44824877]
[1756392256307,0.08121397,113120.0,113110.0,0.44824877]
[1756392258208,0.05731397,113120.0,113110.0,0.44824877]
[1756392258600,0.04121397,113120.0,113110.0,1.01024447]
[1756392259203,0.00801397,113120.0,113110.0,1.01024447]
[1756392260005,0.00801397,113120.0,113110.0,1.26024447]
[1756392260205,0.01808188,113130.0,113110.0,1.25824447]
[1756392260409,0.01808188,113130.0,113120.0,1.7553783]
[1756392261709,0.01908188,113130.0,113120.0,1.7553783]
[1756392263107,0.01908188,113130.0,113120.0,2.0053783]
[1756392263507,0.01808188,113130.0,113120.0,2.0053783]
[1756392265007,0.01762406,113130.0,113120.0,2.0053783]
[1756392267208,0.01762406,113130.0,113120.0,1.5317851]
[1756392267419,0.01762406,113130.0,113120.0,2.0053783]
[1756392267606,0.04152406,113130.0,113120.0,1.44339]
[1756392268113,0.01762406,113130.0,113120.0,1.5317851]
[1756392268413,0.0419056,113130.0,113120.0,1.5317851]
[1756392268611,0.0239,113130.0,113120.0,1.5317851]
[1756392268814,0.0419056,113130.0,113120.0,1.5317851]
[1756392269210,0.0419056,113130.0,113120.0,0.61599]
[1756392269406,0.7815988,113130.0,113120.0,0.36599]
[1756392269606,0.7815988,113130.0,113120.0,0.36399]
[1756392270315,0.7815988,113130.0,113120.0,0.36599]
[1756392271210,0.80389133,113130.0,113120.0,0.36399]
[1756392271513,0.80389146,113130.0,113120.0,0.3608]
[1756392272411,0.7815988,113130.0,113120.0,0.3608]
[1756392272915,0.8038826,113130.0,113120.0,0.3608]
[1756392273616,0.8038826,113130.0,113120.0,0.36399]
[1756392273814,0.5538826,113130.0,113120.0,0.36599]
[1756392274315,0.8038826,113130.0,113120.0,0.36599]
[1756392275011,0.8038826,113130.0,113120.0,0.3608]
[1756392275516,1.6085588,113130.0,113120.0,0.36399]
[1756392276118,1.6085588,113130.0,113120.0,0.36599]
[1756392276422,1.6085588,113130.0,113120.0,0.3608]
[1756392276815,1.6085588,113130.0,113120.0,0.36399]
[1756392277016,1.63084323,113130.0,113120.0,0.36599]
[1756392277317,1.6085588,113130.0,113120.0,0.3608]
[1756392278616,1.5846588,113130.0,113110.0,0.44505877]
[1756392278917,0.5133932,113120.0,113110.0,0.44824877]
[1756392279512,0.5133932,113120.0,113110.0,0.43213579]
[1756392280020,0.5133932,113120.0,113110.0,0.43532579]
[1756392280420,0.5133932,113120.0,113110.0,0.43213579]
[1756392281521,0.5133932,113120.0,113110.0,0.43532579]
[1756392282020,0.5133932,113120.0,113110.0,0.43732579]
[1756392282616,0.5133932,113120.0,113110.0,0.43532579]
[1756392282814,0.7633932,113120.0,113110.0,0.43213579]
[1756392283125,0.01563,113110.0,113090.0,0.3628]
[1756392283322,0.5133932,113100.0,113090.0,0.36599]
[1756392284417,0.5133932,113100.0,113090.0,0.37671285]
[1756392285016,0.5133932,113100.0,113090.0,0.37771285]
[1756392285419,0.5133932,113100.0,113090.0,0.37871285]
[1756392285817,0.5133932,113100.0,113090.0,0.44803137]
[1756392286017,0.5133932,113100.0,113090.0,0.43730852]
[1756392286921,0.5133932,113100.0,113090.0,0.43530852]
[1756392287122,0.5133932,113100.0,113090.0,0.07131852]
[1756392288120,0.8741932,113100.0,113090.0,0.002]
[1756392288323,1.1241932,113100.0,113090.0,0.002]
[1756392291131,0.6506,113100.0,113090.0,0.002]
[1756392291331,1.1241932,113100.0,113090.0,0.002]
[1756392293138,0.8741932,113100.0,113090.0,0.002]
[1756392293835,0.0398,113090.0,113080.0,0.06906984]
[1756392294132,0.02417,113080.0,113070.0,0.36719]
[1756392294335,0.5133932,113080.0,113070.0,0.00639]
[1756392294537,0.5133932,113080.0,113060.0,0.36919]
[1756392294538,0.0398,113070.0,113060.0,0.36919]
[1756392294835,1.3398732,113070.0,113060.0,0.44007621]
[1756392295634,1.3368732,113070.0,113060.0,0.44007621]
[1756392295839,1.3368732,113070.0,113060.0,0.44507621]
[1756392296034,1.3368732,113070.0,113060.0,0.45575509]
[1756392296434,1.3358732,113070.0,113060.0,0.09495509]
[1756392296635,1.3358732,113070.0,113060.0,0.08427621]
[1756392297229,1.3358732,113070.0,113060.0,0.44507621]
[1756392297432,1.3358732,113070.0,113060.0,0.44807621]
[1756392298640,1.3358732,113070.0,113060.0,0.44607621]
[1756392298842,1.3358732,113070.0,113060.0,0.07888621]
[1756392300235,1.3358732,113070.0,113060.0,0.07388621]
[1756392300435,1.3378732,113070.0,113060.0,0.07088621]
[1756392300634,1.3378732,113070.0,113060.0,0.01279]
[1756392300839,0.86428,113070.0,113060.0,0.01279]
[1756392301136,1.3378732,113070.0,113060.0,0.02179]
[1756392301341,1.3378732,113070.0,113060.0,0.38259]
[1756392301548,0.5113932,113070.0,113060.0,0.38259]
[1756392301743,1.3377532,113070.0,113060.0,0.38259]
[1756392303041,1.3377532,113070.0,113060.0,0.38159]
[1756392303446,1.3377532,113070.0,113060.0,0.3608]
[1756392304743,1.3377532,113070.0,113060.0,0.44495728]
[1756392305442,1.3377532,113070.0,113060.0,0.43216728]
[1756392307440,1.3377532,113070.0,113060.0,0.44495728]
[1756392308540,0.5113932,113070.0,113060.0,0.45295728]
[1756392308744,0.86404,113070.0,113060.0,0.79139918]
[1756392309238,0.01763,113070.0,113060.0,1.26499238]
[1756392309437,0.002,113070.0,113060.0,1.26499238]
[1756392309641,0.01780154,113080.0,113070.0,0.0944341]
[1756392309838,0.01780154,113080.0,113070.0,1.7646173]
[1756392310042,0.01780154,113080.0,113070.0,2.0146173]
[1756392310248,0.01796709,113090.0,113080.0,0.0944262]
[1756392310448,0.01796709,113090.0,113080.0,0.9384094]
[1756392310833,0.01796709,113090.0,113080.0,0.7148162]
[1756392311037,0.01796709,113090.0,113080.0,1.1884094]
[1756392312142,0.05822709,113090.0,113080.0,0.62639]
[1756392312346,0.03524709,113090.0,113080.0,0.7148162]
[1756392313038,0.03724709,113090.0,113080.0,0.7148162]
[1756392313239,0.53382029,113090.0,113080.0,0.37639]
[1756392314136,0.53382029,113090.0,113080.0,0.00959]
[1756392314337,0.03826,113080.0,113070.0,0.37639]
[1756392314649,0.5118532,113080.0,113070.0,0.37639]
[1756392316036,0.5128532,113080.0,113070.0,0.37039]
[1756392316345,0.5138532,113080.0,113070.0,0.37039]
[1756392316846,0.5138532,113080.0,113070.0,0.37639]
[1756392317443,0.5138532,113080.0,113070.0,0.4648241]
[1756392317642,0.002,113080.0,113070.0,1.1884173]
[1756392317848,0.002,113080.0,113070.0,0.7148241]
[1756392318146,0.002,113080.0,113070.0,1.1884173]
[1756392318747,0.002,113080.0,113070.0,2.0142573]
[1756392319440,0.02498,113080.0,113070.0,2.0142573]
[1756392319642,0.002,113080.0,113070.0,2.0142573]
[1756392322346,0.02498,113080.0,113070.0,0.714824]
[1756392322555,0.02498,113080.0,113070.0,1.45215]
[1756392323055,0.02498,113080.0,113070.0,1.5405841]
[1756392323351,0.002,113080.0,113070.0,1.5405041]
[1756392324049,0.04026,113080.0,113070.0,1.45207]
[1756392324353,0.5138532,113080.0,113070.0,0.37639]
[1756392324547,0.5138532,113080.0,113070.0,1.20203]
[1756392325147,0.5138532,113080.0,113070.0,0.37639]
[1756392326157,0.04026,113080.0,113070.0,0.37639]
[1756392326357,0.5138532,113080.0,113070.0,0.37639]
[1756392327658,0.5138532,113080.0,113070.0,0.4648241]
[1756392327957,0.04026,113080.0,113070.0,0.4648241]
[1756392328163,0.04026,113080.0,113070.0,0.37639]
[1756392328552,0.5138532,113080.0,113070.0,0.37639]
[1756392328753,0.002,113080.0,113070.0,0.4648241]
[1756392329152,0.01728,113080.0,113070.0,0.4648241]
[1756392329353,0.04026,113080.0,113070.0,0.4648241]
[1756392329950,0.5138532,113080.0,113070.0,0.37639]
[1756392330262,0.5138532,113080.0,113070.0,1.20187]
[1756392330554,0.5138532,113080.0,113070.0,0.37639]
[1756392330756,0.7638532,113080.0,113070.0,0.37039]
[1756392331960,0.29026,113080.0,113070.0,0.3608]
[1756392332263,0.7638532,113080.0,113070.0,0.3608]
[1756392332763,0.7638532,113080.0,113070.0,0.37039]
[1756392333151,0.7638532,113080.0,113070.0,0.37639]
[1756392333661,0.7638532,113080.0,113070.0,0.3608]
[1756392333856,0.29026,113080.0,113070.0,0.3608]
[1756392334054,0.7638532,113080.0,113070.0,0.3608]
[1756392335267,0.7638532,113080.0,113070.0,0.37639]
[1756392335459,0.29026,113080.0,113070.0,0.37639]
[1756392335763,0.7638532,113080.0,113070.0,0.37639]
[1756392338562,0.7638532,113080.0,113070.0,0.37039]
[1756392338766,0.7638532,113080.0,113070.0,0.3608]
[1756392341471,0.7408732,113080.0,113060.0,0.43816728]
[1756392341669,0.5119832,113070.0,113060.0,0.44775728]
[1756392341971,0.52959561,113070.0,113060.0,0.44775728]
[1756392342976,0.52959561,113070.0,113060.0,0.44875728]
[1756392343369,0.05600241,113070.0,113060.0,0.53719918]
[1756392343576,0.03278241,113070.0,113060.0,0.53719918]
[1756392343767,0.03278241,113070.0,113060.0,1.26079238]
[1756392344173,0.03278241,113070.0,113060.0,0.78719918]
[1756392344666,0.01761241,113070.0,113060.0,1.26079238]
[1756392345472,0.01761241,113070.0,113060.0,0.78719918]
[1756392345671,0.01761241,113070.0,113060.0,1.26079238]
[1756392346073,0.01816954,113070.0,113060.0,1.25479238]
[1756392346382,0.01816954,113070.0,113060.0,1.26079238]
[1756392347876,0.01816954,113070.0,113060.0,0.78719918]
[1756392348083,0.05655954,113070.0,113060.0,0.69875728]
[1756392348470,0.53015274,113070.0,113060.0,1.27383728]
[1756392348675,0.05655954,113070.0,113060.0,1.27383728]
[1756392348874,0.53015274,113070.0,113060.0,0.44875728]
[1756392349681,0.52962371,113070.0,113060.0,0.44875728]
[1756392350074,0.52962371,113070.0,113060.0,0.53719918]
[1756392350479,0.52962371,113070.0,113060.0,0.44875728]
[1756392354783,0.52962371,113070.0,113060.0,0.43316728]
[1756392355275,0.52962371,113070.0,113060.0,0.44275728]
[1756392355480,0.52962371,113070.0,113060.0,0.44875728]
[1756392356086,0.52962371,113070.0,113060.0,0.44275728]
[1756392357185,1.60438371,113070.0,113060.0,0.07236728]
[1756392357380,1.96518371,113070.0,113060.0,0.001]
[1756392357581,1.98772046,113070.0,113060.0,0.001]
[1756392357786,1.96450046,113070.0,113030.0,0.3668]
[1756392358085,0.52973156,113040.0,113030.0,0.07247598]
[1756392358278,1.35449156,113040.0,113020.0,0.38080356]
[1756392358479,0.4968132,113030.0,113020.0,0.39899356]
[1756392358680,0.5119832,113030.0,113020.0,0.39899356]
[1756392359083,0.03839,113030.0,113020.0,0.38080356]
[1756392359280,0.5119832,113030.0,113020.0,0.38080356]
[1756392359586,0.03839,113020.0,113010.0,0.38221118]
[1756392359886,0.53006153,113020.0,113010.0,0.38921118]
[1756392360185,0.05646833,113020.0,113010.0,0.63921118]
[1756392360387,0.53006153,113020.0,113010.0,0.63921118]
[1756392360586,0.53006153,113020.0,113010.0,0.38921118]
[1756392360983,0.52506153,113020.0,113010.0,0.38921118]
[1756392361886,0.52506153,113020.0,113010.0,0.39521118]
[1756392362091,0.05146833,113020.0,113010.0,0.39521118]
[1756392362281,0.52506153,113020.0,113010.0,0.46581734]
[1756392363491,0.52506153,113020.0,113010.0,0.47081734]
[1756392365588,0.52506153,113020.0,113010.0,0.55929834]
[1756392367389,0.52506153,113020.0,113010.0,0.47081734]
[1756392369804,0.52506153,113020.0,113010.0,0.55929834]
[1756392370004,0.52506153,113020.0,113010.0,0.47081734]
[1756392370905,0.52506153,113020.0,113010.0,0.55929834]
[1756392372098,0.52506153,113020.0,113010.0,0.44859616]
[1756392372801,0.52506153,113020.0,113010.0,0.46059616]
[1756392373001,0.52506153,113020.0,113010.0,0.44859616]
[1756392373394,0.52506153,113020.0,113010.0,0.47074671]
[1756392373606,0.05146833,113020.0,113010.0,0.47074671]
[1756392373805,0.52506153,113020.0,113010.0,0.47074671]
[1756392374699,0.03324833,113020.0,113010.0,1.03282091]
[1756392374898,0.01807833,113020.0,113010.0,1.03282091]
[1756392375099,0.01807833,113020.0,113010.0,1.28282091]
[1756392375694,0.04032836,113040.0,113010.0,1.28282091]
[1756392375900,0.05636836,113040.0,113030.0,0.9506685]
[1756392376203,0.05636836,113040.0,113030.0,0.4770753]
[1756392376704,0.05636836,113040.0,113030.0,0.8378753]
[1756392376906,0.03378836,113040.0,113030.0,1.5614685]
[1756392377114,0.01774836,113040.0,113030.0,1.5614685]
[1756392379899,0.01774836,113040.0,113030.0,1.5624685]
[1756392381311,0.00574836,113040.0,113030.0,1.5624685]
[1756392387812,0.00574836,113040.0,113030.0,1.8304685]
[1756392390013,0.00574836,113040.0,113030.0,1.5804685]
[1756392392319,0.05855051,113070.0,113060.0,0.0884419]
[1756392392616,0.05855051,113070.0,113060.0,1.2732419]
[1756392392918,0.28366051,113070.0,113060.0,1.2732419]
[1756392393118,0.28366051,113070.0,113060.0,1.7468351]
[1756392393420,0.30855051,113070.0,113060.0,1.7468351]
[1756392393719,0.28566051,113070.0,113060.0,1.7468351]
[1756392394120,0.27364051,113070.0,113060.0,1.7468351]
[1756392394322,0.02364051,113070.0,113060.0,1.9968351]
[1756392394816,0.006,113070.0,113060.0,1.9968351]
[1756392398409,0.006,113070.0,113060.0,1.5232419]
[1756392398614,0.006,113070.0,113060.0,1.9968351]
[1756392398921,0.006,113070.0,113060.0,1.5232419]
[1756392399117,0.006,113070.0,113060.0,1.9968351]
[1756392400019,0.006,113070.0,113060.0,1.1728351]
[1756392400324,0.006,113070.0,113060.0,1.9965151]
[1756392402324,0.006,113070.0,113060.0,1.5229219]
[1756392402522,0.006,113070.0,113060.0,1.9965151]
[1756392405828,0.006,113070.0,113060.0,2.2645151]
[1756392408125,0.006,113070.0,113060.0,2.0445151]
[1756392408325,0.03402467,113100.0,113090.0,0.0884184]
[1756392408523,0.03402467,113100.0,113090.0,2.12665456]
[1756392408733,0.05891467,113100.0,113090.0,2.12665456]
[1756392409028,0.05891467,113100.0,113090.0,2.13665523]
[1756392409726,0.05891467,113100.0,113090.0,2.20674466]
[1756392409930,0.06591467,113100.0,113090.0,2.20674466]
[1756392410331,0.06891467,113100.0,113090.0,2.20674466]
[1756392411125,0.15732527,113100.0,113090.0,2.20674466]
[1756392411326,0.15632527,113100.0,113090.0,2.20674466]
[1756392411631,0.15632527,113100.0,113090.0,1.73315146]
[1756392411934,0.14932527,113100.0,113090.0,2.20674466]
[1756392412725,0.12443527,113100.0,113090.0,2.20674466]
[1756392413030,0.14932527,113100.0,113090.0,2.20674466]
[1756392414736,0.1313206,113100.0,113090.0,2.20674412]
[1756392415624,0.1064306,113100.0,113090.0,2.20674412]
[1756392416031,0.1313206,113100.0,113090.0,2.20674412]
[1756392416839,0.01802,113100.0,113090.0,2.20674412]
[1756392418240,0.01802,113100.0,113090.0,2.20650972]
[1756392418636,0.002,113100.0,113090.0,2.47450972]
[1756392420238,0.003,113100.0,113090.0,2.47450972]
[1756392421438,0.002,113100.0,113090.0,2.47450972]
[1756392422441,0.002,113100.0,113090.0,2.76450972]
[1756392422645,0.02469,113130.0,113110.0,0.0884007]
[1756392422834,0.05833115,113140.0,113130.0,0.0883871]
[1756392423037,0.08080317,113140.0,113130.0,0.9227803]
[1756392423339,0.03364115,113140.0,113130.0,0.9227803]
[1756392423743,0.02469,113150.0,113140.0,0.0883793]
[1756392423942,0.06306165,113150.0,113140.0,1.76521677]
[1756392424133,0.06306738,113150.0,113140.0,1.76521677]
[1756392424336,0.0406,113150.0,113140.0,1.76521677]
[1756392424737,0.01591,113150.0,113140.0,1.76521677]
[1756392425438,0.1299715,113150.0,113140.0,1.76521677]
[1756392426844,0.1299715,113150.0,113140.0,1.29162357]
[1756392427046,0.1299715,113150.0,113140.0,1.76505677]
[1756392428144,0.3799715,113150.0,113140.0,0.38052427]
[1756392428344,0.3799715,113150.0,113140.0,1.29138357]
[1756392428743,0.3799715,113150.0,113140.0,1.20300427]
[1756392429142,0.3799715,113150.0,113140.0,1.29138377]
[1756392429347,0.3799715,113150.0,113140.0,1.20300427]
[1756392429843,0.3799715,113150.0,113140.0,0.94249697]
[1756392430040,0.3799715,113150.0,113140.0,1.76489697]
[1756392431547,0.1393715,113150.0,113140.0,1.78080697]
[1756392432143,0.227743,113150.0,113140.0,1.78080697]
[1756392432338,0.243653,113150.0,113140.0,1.79683697]
[1756392433340,0.2436531,113150.0,113140.0,1.79683697]
[1756392433645,0.2683431,113150.0,113140.0,1.79683697]
[1756392434948,0.2683431,113150.0,113140.0,1.32324377]
[1756392435148,0.2683431,113150.0,113140.0,1.79683697]
[1756392436142,0.1130594,113160.0,113150.0,0.0883716]
[1756392436451,0.0406,113160.0,113150.0,0.9625248]
[1756392436645,0.0406,113160.0,113150.0,1.03355259]
[1756392437648,0.113053,113170.0,113160.0,0.0883638]
[1756392437853,0.14718058,113170.0,113160.0,0.50831251]
[1756392438151,0.14718058,113170.0,113160.0,1.34038457]
[1756392438853,0.14718058,113170.0,113160.0,1.81397777]
[1756392439045,0.14718058,113170.0,113160.0,1.34038457]
[1756392439860,0.12249058,113170.0,113160.0,1.81397777]
[1756392440255,0.03412758,113170.0,113160.0,1.92460627]
[1756392440456,0.01821758,113170.0,113160.0,1.92460627]
[1756392444362,0.01821758,113170.0,113160.0,1.45101307]
[1756392444562,0.01821758,113170.0,113160.0,1.92460627]
[1756392444861,0.01821758,113170.0,113160.0,2.64819947]
[1756392445263,0.01821758,113170.0,113160.0,2.17460627]
[1756392447369,0.01821758,113170.0,113160.0,2.17420627]
[1756392449065,0.01821758,113170.0,113160.0,1.35256627]
[1756392449258,0.01821758,113170.0,113160.0,2.17412627]
[1756392450258,0.01821758,113170.0,113160.0,2.44212627]
[1756392450765,0.01821758,113170.0,113160.0,2.19212627]
[1756392451062,0.01821758,113170.0,113160.0,2.66571947]
[1756392451258,0.01821758,113170.0,113160.0,2.66563947]
[1756392451465,0.01821758,113170.0,113160.0,2.19204627]
[1756392453162,0.01821758,113170.0,113160.0,2.66563947]
[1756392454571,0.01821758,113170.0,113160.0,2.19204627]
[1756392456361,0.01821758,113170.0,113160.0,2.66563947]
[1756392457470,0.01821929,113190.0,113170.0,0.0883536]
[1756392457672,0.03441929,113190.0,113180.0,2.1271613]
[1756392457970,0.08074331,113190.0,113180.0,2.0388132]
[1756392458267,0.08074331,113190.0,113180.0,1.6535681]
[1756392458470,0.08074331,113190.0,113180.0,0.75955]
[1756392458672,0.08074331,113190.0,113180.0,1.6690981]
[1756392459464,0.08074331,113190.0,113180.0,1.55837]
[1756392459671,0.55433651,113190.0,113180.0,1.58075]
[1756392459869,0.55433651,113190.0,113180.0,1.6690981]
[1756392460668,0.08074331,113190.0,113180.0,1.6690981]
[1756392462267,0.04067331,113190.0,113180.0,2.1426913]
[1756392462468,0.06454331,113190.0,113180.0,2.1425713]
[1756392462671,0.08074331,113190.0,113180.0,1.6689781]
[1756392462872,0.08074331,113190.0,113180.0,2.1425713]
[1756392463066,0.08074331,113190.0,113180.0,1.6689781]
[1756392463467,0.04067331,113190.0,113180.0,2.1425713]
[1756392463874,0.04067331,113190.0,113180.0,2.2531998]
[1756392464974,0.02245402,113190.0,113180.0,2.2531998]
[1756392465476,0.93787852,113210.0,113190.0,0.1766652]
[1756392465774,0.93787852,113210.0,113200.0,1.2700926]
[1756392466072,0.93909193,113210.0,113200.0,1.2700926]
[1756392466274,0.01902193,113210.0,113200.0,2.2151143]
[1756392467269,0.04289193,113210.0,113200.0,2.2151143]
[1756392467474,0.04289193,113210.0,113200.0,1.7415211]
[1756392468278,0.00121341,113210.0,113200.0,2.69840519]
[1756392468779,0.00121341,113210.0,113200.0,2.22481199]
[1756392469975,0.00121341,113210.0,113200.0,1.75121879]
[1756392470274,0.00121341,113210.0,113200.0,2.22481199]
[1756392472779,0.00121341,113210.0,113200.0,2.69840519]
[1756392472980,0.00121341,113210.0,113200.0,2.96640519]
[1756392473179,0.00121341,113210.0,113200.0,2.85577669]
[1756392474174,0.00121341,113210.0,113200.0,2.96640519]
[1756392474780,0.00121341,113210.0,113200.0,3.21640519]
[1756392476372,0.00121341,113210.0,113200.0,3.22404519]
[1756392478079,0.00121341,113210.0,113200.0,2.95604519]
[1756392478470,0.04169224,113230.0,113220.0,0.0883172]
[1756392478786,0.03402224,113230.0,113220.0,2.13121312]
[1756392479072,0.01782224,113230.0,113220.0,2.24184162]
[1756392479775,0.01782224,113230.0,113220.0,1.76824842]
[1756392479967,0.01782224,113230.0,113220.0,2.24184162]
[1756392482074,0.01782224,113230.0,113220.0,2.3112077]
[1756392482274,0.01782224,113230.0,113220.0,1.8376145]
[1756392482473,0.01782224,113230.0,113220.0,2.3112077]
[1756392482876,0.4735932,113250.0,113220.0,2.3112077]
[1756392482877,0.5146232,113250.0,113240.0,0.0883016]
[1756392483078,0.5146232,113250.0,113240.0,1.2765816]
[1756392483774,0.04103,113250.0,113240.0,1.2765816]
[1756392483977,0.5146232,113250.0,113240.0,1.2765816]
[1756392485681,0.5146232,113250.0,113240.0,1.2768616]
[1756392486677,0.7646232,113250.0,113240.0,0.3608]
[1756392487081,0.78718305,113250.0,113240.0,0.3608]
[1756392487982,0.02472,113240.0,113230.0,1.18808]
[1756392488175,0.5146232,113240.0,113230.0,0.3608]
[1756392488881,0.5146232,113240.0,113220.0,1.3654204]
[1756392488882,0.02472,113230.0,113220.0,1.3654204]
[1756392489085,0.4983132,113230.0,113220.0,1.4760489]
[1756392489277,0.78283499,113230.0,113220.0,0.4500288]
[1756392492174,0.80542123,113230.0,113220.0,0.4500288]
[1756392492371,1.63234123,113230.0,113220.0,0.4500288]
[1756392493182,1.63234123,113230.0,113220.0,0.538346]
[1756392493381,1.63234123,113230.0,113220.0,0.4500288]
[1756392493577,1.15874803,113230.0,113220.0,0.4500288]
[1756392493778,1.63234123,113230.0,113220.0,0.4500288]
[1756392493977,0.90874803,113230.0,113220.0,0.538346]
[1756392494178,1.38230123,113230.0,113220.0,0.538346]
[1756392494486,0.08182803,113230.0,113220.0,0.6489745]
[1756392494682,0.08182803,113230.0,113220.0,0.62911178]
[1756392495075,0.05710803,113230.0,113220.0,0.62911178]
[1756392495279,0.05710803,113230.0,113220.0,1.10270498]
[1756392495586,0.03452179,113230.0,113220.0,1.10270498]
[1756392496285,0.05924179,113230.0,113220.0,0.62911178]
[1756392497377,0.05924179,113230.0,113220.0,1.45579178]
[1756392499180,0.03452179,113230.0,113220.0,1.45579178]
[1756392499381,0.05924179,113230.0,113220.0,1.45579178]
[1756392499578,0.05924179,113230.0,113220.0,0.62911178]
[1756392501689,0.53283499,113230.0,113220.0,0.54079458]
[1756392501884,0.53283499,113230.0,113220.0,0.62911168]
[1756392502588,0.53283499,113230.0,113220.0,0.54079458]
[1756392503085,0.78283499,113230.0,113220.0,0.43016608]
[1756392503283,0.80494969,113230.0,113220.0,0.43016608]
[1756392506191,1.62974969,113230.0,113220.0,0.43016608]
[1756392507293,1.60763499,113230.0,113220.0,0.43016608]
[1756392508088,1.13404179,113230.0,113220.0,0.43016608]
[1756392508283,1.60763499,113230.0,113220.0,0.43016608]
[1756392509896,1.60763499,113230.0,113220.0,0.51848318]
[1756392510192,1.35663499,113230.0,113220.0,0.62911168]
[1756392510393,0.53283499,113230.0,113220.0,0.62911168]
[1756392510593,0.05924179,113230.0,113220.0,0.62911168]
[1756392510991,0.05924179,113230.0,113220.0,0.87911168]
[1756392511499,0.01821179,113230.0,113220.0,1.35270488]
[1756392511793,0.03477179,113230.0,113220.0,1.35270488]
[1756392512187,0.03477179,113230.0,113220.0,0.87911168]
[1756392512393,0.05749179,113230.0,113220.0,0.87911168]
[1756392512594,0.53108499,113230.0,113220.0,0.87911168]
[1756392513688,0.05749179,113230.0,113220.0,0.87911168]
[1756392514692,0.03477179,113230.0,113220.0,0.87911168]
[1756392515197,0.05749179,113230.0,113220.0,0.87911168]
[1756392515390,0.05749179,113230.0,113220.0,1.70331168]
[1756392516090,0.03477179,113230.0,113220.0,1.70331168]
[1756392516896,0.03477179,113230.0,113220.0,2.17690488]
[1756392517197,0.01821179,113230.0,113220.0,2.17690488]
[1756392520092,0.01821179,113230.0,113220.0,1.70331168]
[1756392520292,0.01821179,113230.0,113220.0,2.17690488]
[1756392520799,0.01821179,113230.0,113220.0,2.19657687]
[1756392521000,0.01821179,113230.0,113220.0,2.27620366]
[1756392521901,0.01821179,113230.0,113220.0,2.19657687]
[1756392522791,0.03461748,113260.0,113240.0,0.0882947]
[1756392522999,0.05733748,113260.0,113250.0,1.2834869]
[1756392523205,0.03928,113260.0,113250.0,1.3941154]
[1756392523501,0.05703591,113270.0,113260.0,0.0882796]
[1756392523696,0.01775591,113270.0,113260.0,1.87486237]
[1756392523899,0.04047591,113270.0,113260.0,1.87486237]
[1756392524401,0.01775591,113270.0,113260.0,1.87486237]
[1756392524602,0.02272,113280.0,113270.0,0.0882759]
[1756392524804,0.03928,113280.0,113270.0,0.3608]
[1756392525002,1.3928732,113280.0,113270.0,0.3608]
[1756392525397,0.89656,113280.0,113270.0,0.3608]
[1756392525599,0.89656,113280.0,113270.0,0.9226714]
[1756392525801,0.91928,113280.0,113270.0,0.4490782]
[1756392526902,1.16928,113280.0,113270.0,0.56912113]
[1756392527097,0.03928,113280.0,113270.0,1.04271433]
[1756392527306,0.05722455,113290.0,113280.0,0.0882704]
[1756392527602,0.05722455,113290.0,113280.0,1.7449436]
[1756392527794,0.03450455,113290.0,113280.0,1.8555721]
[1756392528000,0.01794455,113290.0,113280.0,1.8555721]
[1756392529007,0.01794455,113290.0,113280.0,1.92516965]
[1756392529196,0.01656,113320.0,113300.0,0.0882501]
[1756392529400,0.05683148,113310.0,113300.0,0.4490501]
[1756392529598,0.05683148,113310.0,113300.0,1.3817186]
[1756392529802,0.03411148,113310.0,113300.0,1.8553118]
[1756392530000,0.05683148,113310.0,113300.0,1.3940718]
[1756392530600,0.53042468,113310.0,113300.0,0.8322285]
[1756392530898,0.05683148,113310.0,113300.0,1.6541485]
[1756392531097,0.53042468,113310.0,113300.0,1.7424033]
[1756392532106,0.05683148,113310.0,113300.0,1.7424033]
[1756392532305,0.53042468,113310.0,113300.0,1.7424033]
[1756392532501,0.03411148,113310.0,113300.0,1.7424033]
[1756392532701,0.05683148,113310.0,113300.0,1.7424033]
[1756392533103,0.05683148,113310.0,113300.0,1.6317748]
[1756392533809,0.53042468,113310.0,113300.0,1.6317748]
[1756392534006,0.05683148,113310.0,113300.0,1.6317748]
[1756392534205,0.53042468,113310.0,113300.0,1.6317748]
[1756392534402,0.05683148,113310.0,113300.0,1.6317748]
[1756392534709,0.53042468,113310.0,113300.0,1.6317748]
[1756392535109,0.05683148,113310.0,113300.0,1.6317748]
[1756392535311,0.03928,113310.0,113300.0,1.6317748]
[1756392535505,0.01656,113310.0,113300.0,1.6317748]
[1756392535707,0.01759837,113320.0,113310.0,0.088247]
[1756392535903,0.01759837,113320.0,113310.0,1.0332687]
[1756392537409,0.01759837,113320.0,113310.0,1.36178004]
[1756392538214,0.88,113350.0,113340.0,0.0882197]
[1756392538404,0.91928,113350.0,113340.0,1.28082654]
[1756392540008,0.03928,113350.0,113340.0,1.28082654]
[1756392540210,0.03928,113350.0,113340.0,1.30323534]
[1756392540506,0.02385,113340.0,113330.0,1.18276]
[1756392540811,0.57595454,113340.0,113330.0,1.2933885]
[1756392541006,0.84099454,113340.0,113330.0,0.4714285]
[1756392541200,0.84099454,113340.0,113330.0,1.2936685]
[1756392542709,0.84099454,113340.0,113330.0,1.3818999]
[1756392543010,0.84099454,113340.0,113330.0,0.4714285]
[1756392543712,0.03889,113330.0,113310.0,1.18368]
[1756392543912,0.57595454,113320.0,113310.0,1.2943085]
[1756392544115,0.59099454,113320.0,113310.0,0.4810705]
[1756392546310,0.84099454,113320.0,113310.0,0.3608]
[1756392546898,0.84099454,113320.0,113310.0,0.37026006]
[1756392547102,0.84099454,113320.0,113310.0,0.3608]
[1756392547302,0.84099454,113320.0,113310.0,0.37026673]
[1756392547703,0.59099454,113320.0,113310.0,0.48089523]
[1756392548206,0.03889,113320.0,113310.0,0.48089523]
[1756392548413,0.59099454,113320.0,113310.0,0.48089523]
[1756392549811,0.03889,113320.0,113310.0,0.48089523]
[1756392550014,0.59099454,113320.0,113310.0,0.48089523]
[1756392551309,0.59099454,113320.0,113310.0,0.4714285]
[1756392551515,0.03889,113320.0,113310.0,0.4714285]
[1756392551712,0.59099454,113320.0,113310.0,0.4714285]
[1756392552214,0.61314754,113320.0,113310.0,0.4714285]
[1756392554319,0.061043,113320.0,113310.0,0.4714285]
[1756392554508,0.61314754,113320.0,113310.0,0.4714285]
[1756392555015,0.61314754,113320.0,113310.0,0.1106285]
[1756392558419,1.22394754,113320.0,113300.0,0.3608]
[1756392558615,1.22394754,113320.0,113300.0,0.1106285]
[1756392558616,1.41195454,113310.0,113300.0,0.1106285]
[1756392558816,1.78921292,113310.0,113290.0,0.3608]
[1756392559121,0.59099454,113300.0,113290.0,0.4714285]